fUSD/lending_fUSD_20240614
["ID","MTS","AMOUNT","RATE_DAILY","PERIOD"]
[329457549,1718375483466,-500.0,0.00024657,3]
[329457550,1718375483490,-181.93870613,0.00024657,3]
[329457551,1718375483520,-500.0,0.00024657,3]
[329457552,1718375483536,-500.0,0.00024657,3]
[329457553,1718375483568,-500.0,0.00024657,3]
[329457554,1718375483590,-500.0,0.00024657,3]
[329457555,1718375483605,-500.0,0.00024657,3]
[329457556,1718375483627,-500.0,0.00024657,3]
[329457557,1718375483641,-280.14320952,0.00024657,3]
[329457558,1718375483665,-500.0,0.00024657,3]
[329457559,1718375483692,-500.0,0.00024657,3]
[329457560,1718375483703,-500.0,0.00024657,3]
[329457561,1718375483715,-500.0,0.00024657,3]
[329457562,1718375483737,-500.0,0.00024657,3]
[329457563,1718375483753,-500.0,0.00024657,3]
[329457564,1718375483776,-500.0,0.00024657,3]
[329457565,1718375483793,-500.0,0.00024657,3]
[329457566,1718375483809,-500.0,0.00024657,3]
[329457567,1718375483836,-500.0,0.00024657,3]
[329457568,1718375483862,-542.49790987,0.00024657,3]
[329457569,1718375483901,-500.0,0.00024657,3]
[329457570,1718375483936,-372.75405991,0.00024657,3]
[329457571,1718375483974,-500.0,0.00024657,3]
[329457572,1718375484012,-500.0,0.00024657,3]
[329457573,1718375484023,-500.0,0.00024657,3]
[329457574,1718375484034,-623.61719214,0.00024657,3]
[329457575,1718375484046,-500.0,0.00024657,3]
[329457576,1718375484059,-500.0,0.00024657,3]
[329457577,1718375484100,-500.0,0.00024657,3]
[329457578,1718375484112,-549.86,0.00024657,3]
[329457579,1718375484131,-500.0,0.00024657,3]
[329457580,1718375484145,-500.0,0.00024657,3]
[329457581,1718375484168,-513.02,0.00024657,3]
[329457582,1718375484220,-586.34,0.00024657,3]
[329457583,1718375484247,-500.0,0.00024657,3]
[329457584,1718375484293,-585.09,0.00024657,3]
[329457585,1718375484307,-623.98352478,0.00024657,3]
[329457586,1718375484324,-500.0,0.00024657,3]
[329457587,1718375484341,-500.0,0.00024657,3]
[329457588,1718375484366,-553.77,0.00024657,3]
[329457589,1718375484487,-500.0,0.00024657,3]
[329457590,1718375484544,-500.0,0.00024657,3]
[329457591,1718375484623,-500.0,0.00024657,3]
[329457592,1718375484645,-500.0,0.00024657,3]
[329457593,1718375484670,-500.0,0.00024657,3]
[329457594,1718375484692,-500.0,0.00024657,3]
[329457595,1718375484740,-500.0,0.00024657,3]
[329457596,1718375484783,-500.0,0.00024657,3]
[329457597,1718375484799,-500.0,0.00024657,3]
[329457598,1718375484821,-500.0,0.00024657,3]
[329457599,1718375484848,-659.99,0.00024657,3]
[329457600,1718375484861,-500.0,0.00024657,3]
[329457601,1718375484881,-500.0,0.00024657,3]
[329457602,1718375484903,-500.0,0.00024657,3]
[329457603,1718375484933,-500.0,0.00024657,3]
[329457604,1718375484983,-500.0,0.00024657,3]
[329457605,1718375485006,-576.26,0.00024657,3]
[329457606,1718375485069,-500.0,0.00024657,3]
[329457607,1718375485085,-500.0,0.00024657,3]
[329457608,1718375485097,-1274.73,0.00024657,3]
[329457609,1718375485114,-500.0,0.00024657,3]
[329457610,1718375485152,-500.0,0.00024657,3]
[329457611,1718375485176,-661.6,0.00024657,3]
[329457612,1718375485237,-500.0,0.00024657,3]
[329457613,1718375485257,-500.0,0.00024657,3]
[329457614,1718375485282,-500.0,0.00024657,3]
[329457615,1718375485308,-583.29,0.00024657,3]
[329457616,1718375485321,-500.0,0.00024657,3]
[329457617,1718375485352,-500.0,0.00024657,3]
[329457618,1718375485388,-500.0,0.00024657,3]
[329457619,1718375485413,-500.0,0.00024657,3]
[329457620,1718375485622,-500.0,0.00024657,3]
[329457621,1718375485644,-500.0,0.00024657,3]
[329457622,1718375485673,-500.0,0.00024657,3]
[329457623,1718375485695,-544.95,0.00024657,3]
[329457624,1718375485707,-687.41,0.00024657,3]
[329457625,1718375485733,-594.53,0.00024657,3]
[329457626,1718375485751,-500.0,0.00024657,3]
[329457627,1718375485765,-583.29,0.00024657,3]
[329457628,1718375485804,-731.23,0.00024657,3]
[329457629,1718375485825,-500.0,0.00024657,3]
[329457630,1718375485838,-500.0,0.00024657,3]
[329457631,1718375485856,-500.0,0.00024657,3]
[329457632,1718375485886,-500.0,0.00024657,3]
[329457633,1718375485913,-863.56,0.00024657,3]
[329457634,1718375485939,-500.0,0.00024657,3]
[329457635,1718375485953,-500.0,0.00024657,3]
[329457636,1718375485966,-500.0,0.00024657,3]
[329457637,1718375485983,-500.0,0.00024657,3]
[329457638,1718375486012,-500.0,0.00024657,3]
[329457639,1718375486025,-500.0,0.00024657,3]
[329457640,1718375486050,-500.0,0.00024657,3]
[329457641,1718375486062,-552.62,0.00024657,3]
[329457643,1718375486082,-500.0,0.00024657,3]
[329457644,1718375486112,-500.0,0.00024657,3]
[329457645,1718375486146,-500.0,0.00024657,3]
[329457646,1718375486158,-500.0,0.00024657,3]
[329457647,1718375486173,-500.0,0.00024657,3]
[329457648,1718375486185,-500.0,0.00024657,3]
[329457649,1718375486228,-500.0,0.00024657,3]
[329457650,1718375486320,-500.0,0.00024657,3]
[329457651,1718375486347,-699.76,0.00024657,3]
[329457652,1718375486382,-500.0,0.00024657,3]
[329457653,1718375486397,-500.0,0.00024657,3]
[329457654,1718375486428,-500.0,0.00024657,3]
[329457655,1718375486449,-500.0,0.00024657,3]
[329457656,1718375486476,-504.05,0.00024657,3]
[329457657,1718375486503,-500.0,0.00024657,3]
[329457659,1718375486516,-500.0,0.00024657,3]
[329457660,1718375486567,-1140.16,0.00024657,3]
[329457661,1718375486593,-500.0,0.00024657,3]
[329457662,1718375486606,-638.76,0.00024657,3]
[329457663,1718375486624,-500.0,0.00024657,3]
[329457664,1718375486669,-500.0,0.00024657,3]
[329457665,1718375486724,-500.0,0.00024657,3]
[329457666,1718375486757,-500.0,0.00024657,3]
[329457667,1718375486802,-500.0,0.00024657,3]
[329457668,1718375486821,-500.0,0.00024657,3]
[329457669,1718375486892,-556.79,0.00024657,3]
[329457670,1718375486905,-500.0,0.00024657,3]
[329457671,1718375486996,-674.35,0.00024657,3]
[329457672,1718375487053,-500.0,0.00024657,3]
[329457673,1718375487089,-500.0,0.00024657,3]
[329457674,1718375487102,-500.0,0.00024657,3]
[329457675,1718375487117,-500.0,0.00024657,3]
[329457676,1718375487141,-616.59,0.00024657,3]
[329457677,1718375487152,-500.0,0.00024657,3]
[329457678,1718375487173,-706.58,0.00024657,3]
[329457679,1718375487196,-500.0,0.00024657,3]
[329457680,1718375487238,-779.84,0.00024657,3]
[329457681,1718375487269,-500.0,0.00024657,3]
[329457682,1718375487297,-500.0,0.00024657,3]
[329457683,1718375487313,-500.0,0.00024657,3]
[329457684,1718375487328,-516.46,0.00024657,3]
[329457685,1718375487351,-800.16,0.00024657,3]
[329457686,1718375487365,-151.0,0.00024657,7]
[329457687,1718375487383,-522.87,0.00024657,3]
[329457688,1718375487404,-513.07,0.00024657,3]
[329457689,1718375487421,-151.0,0.00024657,7]
[329457690,1718375487444,-274.009725,0.00024657,7]
[329457691,1718375487471,-665.67,0.00024657,3]
[329457692,1718375487487,-167.04639821,0.00024657,3]
[329457693,1718375487506,-500.0,0.00024657,3]
[329457694,1718375487523,-151.0,0.00024657,7]
[329457695,1718375487569,-563.35,0.00024657,3]
[329457696,1718375487613,-508.3,0.00024657,3]
[329457697,1718375487671,-634.86,0.00024657,3]
[329457698,1718375487686,-151.0,0.00024657,7]
[329457699,1718375487697,-500.0,0.00024657,3]
[329457700,1718375487708,-500.0,0.00024657,3]
[329457701,1718375487747,-500.0,0.00024657,3]
[329457702,1718375487760,-304.68,0.00024657,3]
[329457703,1718375487771,-500.0,0.00024657,3]
[329457704,1718375487782,-151.0,0.00024657,7]
[329457705,1718375487793,-500.0,0.00024657,3]
[329457706,1718375487804,-500.0,0.00024657,3]
[329457707,1718375487815,-520.19,0.00024657,3]
[329457708,1718375487834,-872.71,0.00024657,3]
[329457709,1718375487848,-500.0,0.00024657,3]
[329457710,1718375487872,-151.0,0.00024657,7]
[329457711,1718375487889,-500.0,0.00024657,3]
[329457712,1718375487902,-569.43,0.00024657,3]
[329457713,1718375487919,-737.37,0.00024657,3]
[329457714,1718375487937,-151.0,0.00024657,7]
[329457715,1718375487964,-974.62,0.00024657,3]
[329457716,1718375487976,-500.0,0.00024657,3]
[329457717,1718375488036,-500.0,0.00024657,3]
[329457718,1718375488072,-840.75,0.00024657,3]
[329457719,1718375488112,-1448.13,0.00024657,3]
[329457720,1718375488124,-824.37,0.00024657,7]
[329457721,1718375488152,-500.0,0.00024657,3]
[329457722,1718375488177,-597.24,0.00024657,3]
[329457723,1718375488188,-500.0,0.00024657,3]
[329457724,1718375488213,-673.61,0.00024657,3]
[329457725,1718375488242,-500.0,0.00024657,3]
[329457726,1718375488253,-925.27,0.00024657,3]
[329457727,1718375488282,-500.0,0.00024657,3]
[329457728,1718375488293,-500.0,0.00024657,3]
[329457729,1718375488316,-500.0,0.00024657,3]
[329457730,1718375488335,-500.0,0.00024657,3]
[329457731,1718375488357,-635.65,0.00024657,3]
[329457732,1718375488379,-151.0,0.00024657,7]
[329457733,1718375488392,-500.0,0.00024657,3]
[329457734,1718375488407,-500.0,0.00024657,3]
[329457735,1718375488450,-810.99,0.00024657,3]
[329457736,1718375488461,-679.8,0.00024657,3]
[329457737,1718375488488,-500.0,0.00024657,3]
[329457738,1718375488516,-500.0,0.00024657,3]
[329457739,1718375488532,-500.0,0.00024657,3]
[329457740,1718375488556,-500.0,0.00024657,3]
[329457741,1718375488571,-151.0,0.00024657,7]
[329457742,1718375488596,-500.0,0.00024657,3]
[329457743,1718375488608,-500.0,0.00024657,3]
[329457744,1718375488622,-500.0,0.00024657,3]
[329457745,1718375488645,-806.09,0.00024657,3]
[329457746,1718375488676,-500.0,0.00024657,3]
[329457747,1718375488689,-151.0,0.00024657,7]
[329457748,1718375488702,-500.0,0.00024657,3]
[329457749,1718375488716,-500.0,0.00024657,3]
[329457750,1718375488730,-151.0,0.00024657,7]
[329457751,1718375488755,-500.0,0.00024657,3]
[329457752,1718375488772,-500.0,0.00024657,3]
[329457753,1718375488808,-151.0,0.00024657,7]
[329457754,1718375488852,-500.0,0.00024657,3]
[329457755,1718375488866,-542.58,0.00024657,3]
[329457756,1718375488889,-889.82,0.00024657,3]
[329457757,1718375488902,-922.65,0.00024657,3]
[329457758,1718375488918,-500.0,0.00024657,3]
[329457759,1718375488964,-500.0,0.00024657,3]
[329457760,1718375488979,-500.0,0.00024657,3]
[329457761,1718375488998,-1561.6,0.00024657,3]
[329457762,1718375489049,-684.32,0.00024657,3]
[329457763,1718375489061,-199.269397,0.00024657,7]
[329457764,1718375489072,-151.0,0.00024657,7]
[329457765,1718375489091,-500.0,0.00024657,3]
[329457766,1718375489106,-151.0,0.00024657,7]
[329457767,1718375489140,-3155.24,0.00024657,3]
[329457768,1718375489176,-1255.65,0.00024657,3]
[329457769,1718375489205,-539.21,0.00024657,3]
[329457770,1718375489216,-899.04,0.00024657,3]
[329457771,1718375489244,-500.0,0.00024657,3]
[329457772,1718375489272,-540.88,0.00024657,3]
[329457773,1718375489303,-500.0,0.00024657,3]
[329457774,1718375489327,-630.44,0.00024657,3]
[329457775,1718375489368,-839.24,0.00024657,3]
[329457776,1718375489397,-519.68,0.00024657,3]
[329457777,1718375489459,-1158.77,0.00024657,3]
[329457778,1718375489500,-6950.11,0.00024657,3]
[329457779,1718375489528,-713.69,0.00024657,3]
[329457780,1718375489559,-500.0,0.00024657,3]
[329457781,1718375489573,-500.0,0.00024657,3]
[329457782,1718375489589,-582.9,0.00024657,3]
[329457783,1718375489600,-997.72,0.00024657,3]
[329457784,1718375489612,-878.84,0.00024657,3]
[329457785,1718375489634,-500.0,0.00024657,3]
[329457786,1718375489655,-500.0,0.00024657,3]
[329457787,1718375489681,-500.0,0.00024657,3]
[329457788,1718375489702,-733.88,0.00024657,3]
[329457789,1718375489718,-500.0,0.00024657,3]
[329457790,1718375489729,-5129.19,0.00024657,3]
[329457791,1718375489747,-500.0,0.00024657,3]
[329457792,1718375489823,-151.0,0.00024657,7]
[329457793,1718375489844,-764.1,0.00024657,3]
[329457794,1718375489874,-500.0,0.00024657,3]
[329457795,1718375489886,-158.242262,0.00024657,7]
[329457796,1718375489920,-2188.4,0.00024657,3]
[329457797,1718375489931,-561.81,0.00024657,3]
[329457798,1718375489965,-558.21,0.00024657,3]
[329457799,1718375489976,-12844.82,0.00024657,3]
[329457800,1718375489993,-151.0,0.00024657,7]
[329457801,1718375490056,-808.51,0.00024657,3]
[329457802,1718375490069,-3054.46,0.00024657,3]
[329457803,1718375490087,-2787.84,0.00024657,3]
[329457804,1718375490114,-878.54,0.00024657,3]
[329457805,1718375490139,-500.0,0.00024657,3]
[329457806,1718375490152,-678.28,0.00024657,3]
[329457807,1718375490164,-500.0,0.00024657,3]
[329457808,1718375490222,-500.0,0.00024657,3]
[329457809,1718375490235,-500.0,0.00024657,3]
[329457810,1718375490272,-2491.43,0.00024657,3]
[329457811,1718375490301,-511.55,0.00024657,3]
[329457812,1718375490330,-949.45,0.00024657,3]
[329457813,1718375490349,-2875.52,0.00024657,3]
[329457814,1718375490370,-500.0,0.00024657,3]
[329457815,1718375490392,-1483.03,0.00024657,3]
[329457816,1718375490413,-151.0,0.00024657,7]
[329457817,1718375490426,-500.0,0.00024657,3]
[329457818,1718375490454,-574.29,0.00024657,3]
[329457819,1718375490469,-151.0,0.00024657,7]
[329457820,1718375490483,-500.0,0.00024657,3]
[329457821,1718375490525,-500.0,0.00024657,3]
[329457822,1718375490567,-500.0,0.00024657,3]
[329457823,1718375490578,-990.79,0.00024657,3]
[329457824,1718375490598,-1277.18,0.00024657,3]
[329457825,1718375490608,-1018.46,0.00024657,3]
[329457826,1718375490629,-557.27,0.00024657,3]
[329457827,1718375490643,-2532.46,0.00024657,3]
[329457828,1718375490657,-500.0,0.00024657,3]
[329457829,1718375490687,-151.0,0.00024657,7]
[329457830,1718375490699,-500.0,0.00024657,3]
[329457831,1718375490712,-151.0,0.00024657,7]
[329457832,1718375490728,-593.7,0.00024657,3]
[329457833,1718375490739,-555.82,0.00024657,3]
[329457834,1718375490749,-1387.15,0.00024657,3]
[329457835,1718375490759,-500.0,0.00024657,3]
[329457836,1718375490778,-656.82,0.00024657,3]
[329457837,1718375490793,-500.0,0.00024657,3]
[329457838,1718375490821,-151.0,0.00024657,7]
[329457839,1718375490856,-151.0,0.00024657,7]
[329457840,1718375490872,-500.0,0.00024657,3]
[329457841,1718375490928,-500.0,0.00024657,3]
[329457842,1718375490940,-500.0,0.00024657,3]
[329457843,1718375490958,-977.15,0.00024657,3]
[329457844,1718375490971,-500.0,0.00024657,3]
[329457845,1718375490989,-500.0,0.00024657,3]
[329457846,1718375490999,-1130.03,0.00024657,3]
[329457847,1718375491016,-813.31,0.00024657,3]
[329457848,1718375491026,-1337.02,0.00024657,3]
[329457849,1718375491038,-151.0,0.00024657,7]
[329457850,1718375491048,-151.0,0.00024657,7]
[329457851,1718375491058,-2450.65,0.00024657,3]
[329457852,1718375491069,-714.87,0.00024657,3]
[329457853,1718375491079,-500.0,0.00024657,3]
[329457854,1718375491092,-151.0,0.00024657,7]
[329457855,1718375491104,-151.677979,0.00024657,7]
[329457856,1718375491116,-230.96,0.00024657,3]
[329457857,1718375491181,-500.0,0.00024657,3]
[329457858,1718375491193,-639.37,0.00024657,3]
[329457859,1718375491214,-1156.72,0.00024657,3]
[329457860,1718375491226,-682.25,0.00024657,3]
[329457861,1718375491237,-500.0,0.00024657,3]
[329457862,1718375491247,-919.1,0.00024657,3]
[329457863,1718375491259,-990.78,0.00024657,3]
[329457864,1718375491272,-2286.03,0.00024657,3]
[329457865,1718375491286,-500.0,0.00024657,3]
[329457866,1718375491304,-689.0,0.00024657,3]
[329457867,1718375491315,-151.0,0.00024657,7]
[329457868,1718375491334,-681.41,0.00024657,3]
[329457869,1718375491350,-1114.17,0.00024657,3]
[329457870,1718375491362,-500.0,0.00024657,3]
[329457871,1718375491395,-500.0,0.00024657,3]
[329457872,1718375491408,-500.0,0.00024657,3]
[329457873,1718375491440,-630.9,0.00024657,3]
[329457874,1718375491455,-151.0,0.00024657,7]
[329457875,1718375491466,-257.48953,0.00024657,7]
[329457876,1718375491482,-151.0,0.00024657,7]
[329457877,1718375491496,-518.65,0.00024657,3]
[329457879,1718375491508,-1932.93,0.00024657,3]
[329457880,1718375491538,-1900.62,0.00024657,3]
[329457881,1718375491549,-534.23,0.00024657,3]
[329457882,1718375491561,-500.0,0.00024657,3]
[329457883,1718375491610,-725.76,0.00024657,3]
[329457884,1718375491629,-500.0,0.00024657,3]
[329457885,1718375491660,-151.0,0.00024657,7]
[329457886,1718375491752,-162.44033,0.00024657,7]
[329457887,1718375491764,-1356.74,0.00024657,3]
[329457888,1718375491775,-625.05,0.00024657,3]
[329457889,1718375491816,-253.888723,0.00024657,7]
[329457890,1718375491829,-253.888723,0.00024657,7]
[329457891,1718375491852,-790.29,0.00024657,3]
[329457892,1718375491869,-999.51,0.00024657,3]
[329457893,1718375491890,-253.888723,0.00024657,7]
[329457894,1718375491905,-253.888723,0.00024657,7]
[329457895,1718375491920,-703.53,0.00024657,3]
[329457896,1718375491934,-890.5,0.00024657,3]
[329457897,1718375491964,-714.04,0.00024657,3]
[329457898,1718375491978,-2927.02,0.00024657,3]
[329457899,1718375491990,-844.73,0.00024657,3]
[329457900,1718375492001,-151.0,0.00024657,7]
[329457901,1718375492014,-151.0,0.00024657,7]
[329457902,1718375492033,-3722.27,0.00024657,3]
[329457903,1718375492052,-1143.48,0.00024657,3]
[329457904,1718375492092,-500.0,0.00024657,3]
[329457905,1718375492104,-1338.0,0.00024657,3]
[329457906,1718375492118,-500.0,0.00024657,3]
[329457907,1718375492131,-1188.6,0.00024657,3]
[329457908,1718375492144,-811.55,0.00024657,3]
[329457909,1718375492155,-768.65,0.00024657,3]
[329457910,1718375492166,-500.0,0.00024657,3]
[329457911,1718375492184,-500.0,0.00024657,3]
[329457912,1718375492197,-1142.61,0.00024657,3]
[329457913,1718375492248,-500.0,0.00024657,3]
[329457914,1718375492284,-732.25,0.00024657,3]
[329457915,1718375492322,-948.86,0.00024657,3]
[329457916,1718375492343,-152.010443,0.00024657,7]
[329457917,1718375492384,-1267.24,0.00024657,3]
[329457918,1718375492396,-500.0,0.00024657,3]
[329457919,1718375492433,-500.0,0.00024657,3]
[329457920,1718375492451,-500.0,0.00024657,3]
[329457921,1718375492467,-500.0,0.00024657,3]
[329457922,1718375492544,-759.96,0.00024657,3]
[329457923,1718375492564,-1341.43,0.00024657,3]
[329457924,1718375492575,-500.0,0.00024657,3]
[329457925,1718375492591,-500.0,0.00024657,3]
[329457926,1718375492620,-884.97,0.00024657,3]
[329457927,1718375492651,-500.0,0.00024657,3]
[329457928,1718375492681,-1063.59,0.00024657,3]
[329457929,1718375492705,-500.0,0.00024657,3]
[329457930,1718375492732,-500.0,0.00024657,3]
[329457931,1718375492764,-500.0,0.00024657,3]
[329457932,1718375492800,-848.76,0.00024657,3]
[329457933,1718375492840,-500.0,0.00024657,3]
[329457934,1718375492870,-1183.9,0.00024657,3]
[329457935,1718375492891,-754.01,0.00024657,3]
[329457936,1718375492940,-500.0,0.00024657,3]
[329457937,1718375492954,-500.0,0.00024657,3]
[329457938,1718375492966,-153.702773,0.00024657,7]
[329457939,1718375492977,-442.36184505,0.00024658,2]
[329457940,1718375492999,-154.25476656,0.00024667,2]
[329457941,1718375493014,-1400.0,0.000247,9]
[329457942,1718375493033,-219.76,0.00024712,2]
[329457943,1718375493049,-370.11444388,0.0002475,2]
[329457944,1718375493061,-2336.67597384,0.00024798,2]
[329457945,1718375493073,-2336.67597377,0.00024798,2]
[329457946,1718375493097,-2336.67597377,0.00024798,2]
[329457947,1718375493107,-2336.67597377,0.00024798,2]
[329457948,1718375493118,-2336.67597377,0.00024798,2]
[329457949,1718375493133,-154.94345145,0.00024799,2]
[329457950,1718375493145,-1900.0,0.000248,9]
[329457951,1718375493168,-255026.41257051,0.00024823,2]
[329457952,1718375493190,-151.0,0.00024829,3]
[329457953,1718375493220,-217.55252094,0.0002483,2]
[329457954,1718375493247,-423.49452726,0.00024831,2]
[329457955,1718375493274,-255026.41257051,0.00024841,2]
[329457956,1718375493305,-253.888723,0.00024841,7]
[329457957,1718375493329,-253.888723,0.00024841,7]
[329457958,1718375493356,-151.0,0.00024841,7]
[329457959,1718375493386,-255026.41257051,0.00024842,2]
[329457960,1718375493405,-166.66666666,0.00024848,2]
[329457961,1718375493430,-340.472463,0.00024849,2]
[329457962,1718375493458,-150.0,0.00024862,2]
[329457963,1718375493471,-203330.19114365,0.00024863,2]
[329457964,1718375493773,-930.552031,0.00024863,2]
[329457965,1718375493787,-392.66360108,0.00024863,2]
[329457966,1718375493804,-1310.42936115,0.00024863,2]
[329457967,1718375493819,-1536.88570318,0.00024863,2]
[329457968,1718375493834,-10138.75151659,0.00024863,2]
[329457969,1718375494113,-440.99237249,0.00024109,3]
[329457970,1718375494131,-59.00762751,0.00024109,3]
[329457971,1718375494160,-318.63149135,0.00024863,2]
[329457972,1718375494175,-1250.36350224,0.00024863,2]
[329457973,1718375494199,-631.3782445,0.00024863,2]
[329457974,1718375494220,-330.3755325,0.00024863,2]
[329457975,1718375494264,-1134.92292418,0.00024863,2]
[329457976,1718375494299,-281.0,0.00024863,2]
[329457977,1718375494322,-33440.26751909,0.00024863,2]
[329457978,1718375494345,-253.888723,0.00024863,7]
[329457979,1718375494367,-253.888723,0.00024863,7]
[329457980,1718375494472,-151.0,0.00024863,7]
[329457981,1718375494487,-340.472463,0.00024865,2]
[329457982,1718375494500,-340.472463,0.00024869,2]
[329457983,1718375494528,-127167.89237097,0.00024878,2]
[329457984,1718375494560,-681.83583395,0.00024878,2]
[329457985,1718375494582,-3913.63507207,0.00024878,2]
[329457986,1718375494601,-384.34999965,0.00024878,2]
[329457987,1718375494621,-633.56217276,0.00024878,2]
[329457988,1718375494654,-5359.89457655,0.00024878,2]
[329457989,1718375494764,-500.0,0.00024109,3]
[329457990,1718375494786,-1754.77948346,0.00024878,2]
[329457991,1718375494807,-3000.79085619,0.00024878,2]
[329457992,1718375494884,-938.71168749,0.00024878,2]
[329457993,1718375494901,-5667.27332107,0.00024878,2]
[329457994,1718375494932,-3399.39625553,0.00024878,2]
[329457995,1718375494960,-34798.458,0.00024878,2]
[329457996,1718375495405,-404.03325043,0.00024878,2]
[329457997,1718375495434,-3369.0,0.00024878,2]
[329457998,1718375495455,-771.4335555,0.00024878,2]
[329457999,1718375495476,-15971.390934,0.00024878,2]
[329458000,1718375495491,-11427.50964721,0.00024878,2]
[329458001,1718375495505,-1530.16477718,0.00024878,2]
[329458002,1718375495522,-5654.20900905,0.00024878,2]
[329458003,1718375495570,-2192.31003432,0.00024878,2]
[329458004,1718375495585,-26005.78173313,0.00024878,2]
[329458005,1718375495607,-340.472463,0.00024886,2]
[329458006,1718375495622,-423.49452726,0.0002489,2]
[329458007,1718375495648,-901.74,0.00024899,3]
[329458008,1718375495660,-978.96838405,0.000249,2]
[329458009,1718375495675,-236815.7707,0.000249,2]
[329458010,1718375495694,-243.64147955,0.000249,2]
[329458011,1718375495720,-151.0,0.000249,7]
[329458012,1718375495741,-151.0,0.000249,7]
[329458013,1718375495758,-151.0,0.000249,7]
[329458014,1718375495773,-151.0,0.000249,7]
[329458015,1718375495785,-154.976499,0.000249,7]
[329458016,1718375495798,-151.0,0.000249,7]
[329458017,1718375495809,-151.0,0.000249,7]
[329458018,1718375495819,-246.254354,0.000249,7]
[329458019,1718375495830,-151.0,0.000249,7]
[329458020,1718375495852,-151.0,0.000249,7]
[329458021,1718375495863,-151.0,0.000249,7]
[329458022,1718375495874,-151.0,0.000249,7]
[329458023,1718375495888,-184.3,0.000249,7]
[329458024,1718375495939,-2300.0,0.000249,9]
[329458025,1718375495951,-151.0,0.000249,7]
[329458026,1718375496013,-151.0,0.000249,7]
[329458027,1718375496058,-151.0,0.000249,7]
[329458028,1718375496072,-151.0,0.000249,7]
[329458029,1718375496092,-151.0,0.000249,7]
[329458030,1718375496109,-253.888723,0.000249,7]
[329458031,1718375496135,-253.888723,0.000249,7]
[329458032,1718375496165,-214.389012,0.000249,7]
[329458033,1718375496201,-192.58813866,0.00024909,3]
[329458034,1718375496224,-3492.0,0.00024909,2]
[329458035,1718375496236,-901.74,0.00024929,3]
[329458036,1718375496247,-500.0,0.0002493,3]
[329458037,1718375496258,-500.0,0.0002493,3]
[329458038,1718375496269,-500.0,0.0002493,3]
[329458039,1718375496281,-500.0,0.0002493,3]
[329458040,1718375496294,-500.0,0.0002493,3]
[329458041,1718375496307,-500.0,0.0002493,3]
[329458042,1718375496360,-637.98397908,0.0002493,3]
[329458043,1718375496379,-500.0,0.0002493,3]
[329458044,1718375496390,-500.0,0.0002493,3]
[329458045,1718375496404,-359.33881294,0.0002493,3]
[329458046,1718375496415,-500.0,0.0002493,3]
[329458047,1718375496427,-500.0,0.0002493,3]
[329458048,1718375496470,-500.0,0.0002493,3]
[329458049,1718375496487,-500.0,0.0002493,3]
[329458050,1718375496502,-500.0,0.0002493,3]
[329458051,1718375496521,-500.0,0.0002493,3]